[Event "Championnat du monde jeunes U12F"]
[Date "2024.11.18"]
[White "Siddhi Rao"]
[Black "Mozolevskaya, Tatyana Nik"]
[WhiteElo "1677"]
[BlackElo "1775"]
[Round "4.3"]
[Result "1/2-1/2"]
[TimeControl "5400+30"]

1. e4 {[%clk 1:30:58]} 1... c6 {[%clk 1:30:56]} 2. d4 {[%clk 1:31:23]} 2... d5
{[%clk 1:31:23]} 3. exd5 {[%clk 1:31:48]} 3... cxd5 {[%clk 1:31:49]} 4. Bd3
{[%clk 1:32:09]} 4... Nc6 {[%clk 1:32:16]} 5. c3 {[%clk 1:32:33]} 5... Nf6
{[%clk 1:32:41]} 6. Bf4 {[%clk 1:32:57]} 6... Bg4 {[%clk 1:33:04]} 7. Qb3 {[%clk
1:33:19]} 7... Qd7 {[%clk 1:33:29]} 8. Nd2 {[%clk 1:33:42]} 8... e6 {[%clk
1:33:52]} 9. Ngf3 {[%clk 1:34:07]} 9... Bd6 {[%clk 1:34:05]} 10. Bxd6 {[%clk
1:34:30]} 10... Qxd6 {[%clk 1:34:31]} 11. O-O {[%clk 1:34:55]} 11... O-O {[%clk
1:34:53]} 12. Rae1 {[%clk 1:35:20]} 12... Ne7 {[%clk 1:32:07]} 13. Ne5 {[%clk
1:31:33]} 13... Bf5 {[%clk 1:30:41]} 14. Qc2 {[%clk 1:26:38]} 14... Rac8 {[%clk
1:20:32]} 15. f4 {[%clk 1:21:12]} 15... Qc7 {[%clk 1:11:44]} 16. Re3 {[%clk
1:07:48]} 16... g6 {[%clk 1:04:20]} 17. Qd1 {[%clk 0:56:34]} 17... Bxd3 {[%clk
1:01:03]} 18. Rxd3 {[%clk 0:56:30]} 18... h5 {[%clk 0:57:58]} 19. h3 {[%clk
0:53:18]} 19... Kg7 {[%clk 0:48:43]} 20. Rf2 {[%clk 0:45:37]} 20... Rh8 {[%clk
0:44:19]} 21. Qe2 {[%clk 0:35:27]} 21... Qb6 {[%clk 0:39:43]} 22. b4 {[%clk
0:29:18]} 22... a5 {[%clk 0:36:26]} 23. a3 {[%clk 0:27:12]} 23... axb4 {[%clk
0:36:11]} 24. axb4 {[%clk 0:27:40]} 24... Qa6 {[%clk 0:35:17]} 25. Qf3 {[%clk
0:19:32]} 25... Nf5 {[%clk 0:31:11]} 26. Nb3 {[%clk 0:11:29]} 26... b6 {[%clk
0:29:02]} 27. Nd2 {[%clk 0:09:53]} 27... Nd6 {[%clk 0:26:45]} 28. Rf1 {[%clk
0:05:45]} 28... Nfe4 {[%clk 0:26:30]} 29. Qe3 {[%clk 0:03:43]} 29... Nf5 {[%clk
0:24:04]} 30. Qf3 {[%clk 0:03:55]} 30... Rxc3 {[%clk 0:19:59]} 31. Rxc3 {[%clk
0:02:30]} 31... Nxd2 {[%clk 0:19:13]} 32. Qd3 {[%clk 0:02:20]} 32... Qxd3 {[%clk
0:19:38]} 33. Rxd3 {[%clk 0:02:46]} 33... Nxf1 {[%clk 0:20:03]} 34. Kxf1 {[%clk
0:03:01]} 34... Rc8 {[%clk 0:14:43]} 35. g4 {[%clk 0:02:54]} 35... hxg4 {[%clk
0:15:06]} 36. hxg4 {[%clk 0:03:20]} 36... Nd6 {[%clk 0:14:32]} 37. Ke2 {[%clk
0:03:28]} 37... Nb5 {[%clk 0:14:31]} 38. Ke3 {[%clk 0:03:13]} 38... Rc7 {[%clk
0:14:21]} 39. g5 {[%clk 0:03:19]} 39... Nd6 {[%clk 0:13:49]} 40. Kf3 {[%clk
0:02:24]} 40... Nc4 {[%clk 0:13:41]} 41. Ng4 {[%clk 0:01:59]} 41... Ra7 {[%clk
0:14:02]} 42. Nf6 {[%clk 0:01:24]} 42... Ra2 {[%clk 0:12:35]} 43. Kg4 {[%clk
0:01:06]} 43... Rg2+ {[%clk 0:12:52]} 44. Kf3 {[%clk 0:01:25]} 44... Rb2 {[%clk
0:13:00]} 45. Kg4 {[%clk 0:01:35]} 45... Rg2+ {[%clk 0:08:48]} 46. Kf3 {[%clk
0:01:52]} 46... Rd2 {[%clk 0:08:36]} 47. Rxd2 {[%clk 0:01:35]} 47... Nxd2+
{[%clk 0:09:03]} 48. Ke2 {[%clk 0:01:47]} 48... Nc4 {[%clk 0:09:16]} 49. Kd3
{[%clk 0:01:41]} 49... Kf8 {[%clk 0:09:38]} 50. Nd7+ {[%clk 0:01:45]} 50... Ke7
{[%clk 0:09:46]} 51. Ne5 {[%clk 0:01:57]} 51... Nd6 {[%clk 0:09:45]} 52. Kd2
{[%clk 0:01:29]} 52... Kd8 {[%clk 0:08:08]} 53. Kc3 {[%clk 0:00:47]} 53... Kc7
{[%clk 0:07:42]} 54. Kd3 {[%clk 0:00:42]} 54... Kb7 {[%clk 0:07:58]} 55. Kc3
{[%clk 0:00:52]} 55... Ka6 {[%clk 0:08:21]} 56. Kb3 {[%clk 0:00:50]} 56... Kb5
{[%clk 0:08:17]} 57. Ka3 {[%clk 0:01:03]} 57... Ka6 {[%clk 0:06:10]} 58. Kb3
{[%clk 0:00:49]} 58... Nb5 {[%clk 0:05:26]} 59. Nf3 {[%clk 0:00:39]} 59... Kb7
{[%clk 0:05:38]} 60. Kc2 {[%clk 0:00:43]} 60... Kc7 {[%clk 0:04:39]} 61. Kd3
{[%clk 0:01:03]} 61... Kd8 {[%clk 0:05:03]} 62. Ne5 {[%clk 0:01:14]} 62... Ke8
{[%clk 0:05:28]} 63. Ng4 {[%clk 0:01:21]} 63... Nc7 {[%clk 0:05:30]} 64. Nf6+
{[%clk 0:01:37]} 64... Ke7 {[%clk 0:05:55]} 65. Ng8+ {[%clk 0:02:01]} 65... Ke8
{[%clk 0:05:10]} 66. Nf6+ {[%clk 0:02:23]} 66... Kd8 {[%clk 0:05:35]} 67. Ng4
{[%clk 0:02:35]} 67... Ne8 {[%clk 0:05:21]} 68. Ne5 {[%clk 0:02:42]} 68... Ke7
{[%clk 0:05:16]} 69. Nc6+ {[%clk 0:03:07]} 69... Kf8 {[%clk 0:05:19]} 70. Ne5
{[%clk 0:03:30]} 70... Kg7 {[%clk 0:05:46]} 71. Nd7 {[%clk 0:03:11]} 71... b5
{[%clk 0:06:07]} 72. Ke3 {[%clk 0:02:34]} 72... f6 {[%clk 0:06:08]} 73. Kf3
{[%clk 0:02:38]} 73... fxg5 {[%clk 0:06:28]} 74. fxg5 {[%clk 0:03:04]} 74... Nc7
{[%clk 0:04:45]} 75. Ne5 {[%clk 0:03:10]} 75... Na6 {[%clk 0:04:35]} 76. Nc6
{[%clk 0:03:28]} 76... e5 {[%clk 0:02:26]} 77. dxe5 {[%clk 0:03:09]} 77... Kf7
{[%clk 0:02:48]} 78. Kf4 {[%clk 0:01:52]} 78... Nc7 {[%clk 0:02:05]} 79. Nd8+
{[%clk 0:00:36]} 79... Ke7 {[%clk 0:02:26]} 80. Nb7 {[%clk 0:00:38]} 80... Na6
{[%clk 0:01:24]} 81. Nd6 {[%clk 0:00:49]} 81... Nxb4 {[%clk 0:01:00]} 82. Nxb5
{[%clk 0:01:13]} 82... Nd3+ {[%clk 0:01:24]} 83. Ke3 {[%clk 0:01:35]} 83... Nxe5
{[%clk 0:01:49]} 84. Kd4 {[%clk 0:02:00]} 84... Nf3+ {[%clk 0:02:08]} 85. Kxd5
{[%clk 0:02:25]} 85... Nxg5 {[%clk 0:02:34]} 86. Ke5 {[%clk 0:02:35]} 86... Nf7+
{[%clk 0:02:57]} 87. Kf4 {[%clk 0:03:00]} 87... Kf6 {[%clk 0:03:18]} 88. Nc3
{[%clk 0:03:12]} 88... g5+ {[%clk 0:03:44]} 89. Kg3 {[%clk 0:03:05]} 89... Kf5
{[%clk 0:03:59]} 90. Nd1 {[%clk 0:03:08]} 90... Nd6 {[%clk 0:03:38]} 1/2-1/2

[Variant "Standard"]
[Site "Europe Echecs"]

[Event "Championnat du monde jeunes U12F"]
[Date "2024.11.18"]
[White "Allahverdi, Zahra"]
[Black "Ejsymont, Blanka"]
[WhiteElo "1718"]
[BlackElo "1945"]
[Round "4.4"]
[Result "1-0"]
[TimeControl "5400+30"]

1. c4 {[%clk 1:30:57]} 1... e6 {[%clk 1:30:47]} 2. g3 {[%clk 1:31:20]} 2... d5
{[%clk 1:30:55]} 3. Bg2 {[%clk 1:31:38]} 3... Nf6 {[%clk 1:25:58]} 4. Nf3 {[%clk
1:30:39]} 4... dxc4 {[%clk 1:23:12]} 5. Qa4+ {[%clk 1:29:21]} 5... Qd7 {[%clk
1:22:18]} 6. Qxc4 {[%clk 1:28:16]} 6... Nc6 {[%clk 1:22:24]} 7. d3 {[%clk
1:26:33]} 7... Bd6 {[%clk 1:18:48]} 8. Nbd2 {[%clk 1:21:00]} 8... e5 {[%clk
1:11:01]} 9. a3 {[%clk 1:02:42]} 9... Qe7 {[%clk 1:08:19]} 10. Qb3 {[%clk
0:59:15]} 10... a5 {[%clk 0:59:07]} 11. Nc4 {[%clk 0:56:23]} 11... O-O {[%clk
0:51:47]} 12. Nxd6 {[%clk 0:55:38]} 12... Qxd6 {[%clk 0:48:33]} 13. O-O {[%clk
0:54:45]} 13... Be6 {[%clk 0:46:13]} 14. Qc2 {[%clk 0:54:17]} 14... a4 {[%clk
0:43:16]} 15. Be3 {[%clk 0:53:47]} 15... Ra5 {[%clk 0:39:18]} 16. Nd2 {[%clk
0:50:00]} 16... Ng4 {[%clk 0:36:14]} 17. Ne4 {[%clk 0:42:03]} 17... Nxe3 {[%clk
0:32:44]} 18. fxe3 {[%clk 0:42:12]} 18... Qe7 {[%clk 0:31:48]} 19. Rac1 {[%clk
0:40:42]} 19... Bb3 {[%clk 0:27:33]} 20. Qc3 {[%clk 0:39:34]} 20... Bd5 {[%clk
0:25:06]} 21. Nc5 {[%clk 0:36:07]} 21... Bxg2 {[%clk 0:24:05]} 22. Kxg2 {[%clk
0:36:30]} 22... Ra7 {[%clk 0:22:42]} 23. Qc4 {[%clk 0:34:41]} 23... Qg5 {[%clk
0:16:04]} 24. Ne6 {[%clk 0:33:41]} 24... Qe7 {[%clk 0:09:16]} 25. Nxf8 {[%clk
0:33:59]} 25... Qxf8 {[%clk 0:09:40]} 26. Rf3 {[%clk 0:33:55]} 26... e4 {[%clk
0:08:50]} 27. Qxe4 {[%clk 0:33:16]} 27... Ra5 {[%clk 0:09:10]} 28. d4 {[%clk
0:31:39]} 28... Rb5 {[%clk 0:09:22]} 29. d5 {[%clk 0:30:31]} 29... Ne7 {[%clk
0:09:30]} 30. Rxc7 {[%clk 0:28:25]} 30... Nxd5 {[%clk 0:08:08]} 31. Rcxf7 {[%clk
0:27:57]} 31... Qd8 {[%clk 0:08:07]} 32. Rf8+ {[%clk 0:28:09]} 32... Qxf8 {[%clk
0:08:24]} 33. Qe6+ {[%clk 0:28:35]} 33... Qf7 {[%clk 0:07:58]} 34. Qxf7+ {[%clk
0:29:02]} 34... Kh8 {[%clk 0:08:23]} 35. Qf8# {[%clk 0:29:28]} 1-0

[Variant "Standard"]
[Site "Europe Echecs"]

[Event "Championnat du monde jeunes U12F"]
[Date "2024.11.18"]
[White "Buyankhishig, Batpelden"]
[Black "Harutyunyan, Gabriela"]
[WhiteElo "1867"]
[BlackElo "1730"]
[Round "4.5"]
[Result "1-0"]
[TimeControl "5400+30"]

1. d4 {[%clk 1:30:59]} 1... d5 {[%clk 1:30:35]} 2. c4 {[%clk 1:31:12]} 2... e6
{[%clk 1:30:57]} 3. Nc3 {[%clk 1:31:05]} 3... c5 {[%clk 1:31:06]} 4. cxd5 {[%clk
1:30:51]} 4... cxd4 {[%clk 1:31:08]} 5. Qa4+ {[%clk 1:28:28]} 5... Bd7 {[%clk
1:31:08]} 6. Qxd4 {[%clk 1:28:28]} 6... exd5 {[%clk 1:31:12]} 7. Nxd5 {[%clk
1:12:18]} 7... Nc6 {[%clk 1:30:18]} 8. Qd1 {[%clk 1:11:32]} 8... Nf6 {[%clk
1:25:17]} 9. Nf3 {[%clk 1:04:43]} 9... Nxd5 {[%clk 1:15:11]} 10. Qxd5 {[%clk
1:05:05]} 10... Bb4+ {[%clk 1:14:40]} 11. Bd2 {[%clk 1:02:27]} 11... O-O {[%clk
1:11:43]} 12. e3 {[%clk 0:59:22]} 12... Qe7 {[%clk 1:10:01]} 13. Be2 {[%clk
0:49:54]} 13... Rad8 {[%clk 1:07:16]} 14. O-O {[%clk 0:48:55]} 14... Be6 {[%clk
1:01:41]} 15. Bxb4 {[%clk 0:49:13]} 15... Nxb4 {[%clk 1:01:54]} 16. Qe4 {[%clk
0:46:50]} 16... Nd5 {[%clk 0:54:51]} 17. Rfd1 {[%clk 0:44:17]} 17... Qf6 {[%clk
0:52:28]} 18. Nd4 {[%clk 0:42:34]} 18... Rde8 {[%clk 0:45:36]} 19. Bf3 {[%clk
0:40:14]} 19... Nb6 {[%clk 0:40:38]} 20. Qxb7 {[%clk 0:36:58]} 20... Re7 {[%clk
0:37:19]} 21. Qa6 {[%clk 0:36:31]} 21... Bc8 {[%clk 0:37:01]} 22. Qe2 {[%clk
0:35:31]} 22... Rfe8 {[%clk 0:34:57]} 23. Rac1 {[%clk 0:35:20]} 23... Bd7 {[%clk
0:34:27]} 24. b3 {[%clk 0:34:06]} 24... Qg6 {[%clk 0:33:55]} 25. a4 {[%clk
0:33:03]} 25... Re5 {[%clk 0:31:08]} 26. Nc6 {[%clk 0:32:02]} 26... Bxc6 {[%clk
0:30:41]} 27. Rxc6 {[%clk 0:32:18]} 27... f6 {[%clk 0:30:50]} 28. Qa6 {[%clk
0:31:14]} 28... Rf5 {[%clk 0:27:48]} 29. Be2 {[%clk 0:27:55]} 29... Rg5 {[%clk
0:24:55]} 30. Bf1 {[%clk 0:26:33]} 30... Qe4 {[%clk 0:24:09]} 31. Rcd6 {[%clk
0:25:26]} 31... Qe7 {[%clk 0:17:00]} 32. a5 {[%clk 0:24:53]} 32... Nc8 {[%clk
0:17:17]} 33. Bc4+ {[%clk 0:22:39]} 33... Kh8 {[%clk 0:17:23]} 34. Re6 {[%clk
0:22:57]} 34... Qf8 {[%clk 0:17:21]} 35. Rxe8 {[%clk 0:19:37]} 35... Qxe8 {[%clk
0:17:45]} 36. Qc6 {[%clk 0:19:16]} 36... Re5 {[%clk 0:17:52]} 37. Qc7 {[%clk
0:18:35]} 37... Qf8 {[%clk 0:17:55]} 38. Bb5 {[%clk 0:17:26]} 1-0

[Variant "Standard"]
[Site "Europe Echecs"]

[Event "Championnat du monde jeunes U12F"]
[Date "2024.11.18"]
[White "Li, Sophie"]
[Black "Chovanec, Alice"]
[WhiteElo "1798"]
[BlackElo "1694"]
[Round "4.6"]
[Result "0-1"]
[TimeControl "5400+30"]

1. e4 {[%clk 1:30:55]} 1... c5 {[%clk 1:30:49]} 2. Nf3 {[%clk 1:31:13]} 2... e6
{[%clk 1:31:10]} 3. d4 {[%clk 1:31:29]} 3... cxd4 {[%clk 1:31:31]} 4. Nxd4
{[%clk 1:31:50]} 4... a6 {[%clk 1:31:53]} 5. c4 {[%clk 1:31:49]} 5... Nf6 {[%clk
1:32:04]} 6. Nc3 {[%clk 1:32:07]} 6... Qc7 {[%clk 1:32:11]} 7. a3 {[%clk
1:32:05]} 7... b6 {[%clk 1:32:22]} 8. f4 {[%clk 1:31:28]} 8... d6 {[%clk
1:31:47]} 9. Bd3 {[%clk 1:30:22]} 9... Bb7 {[%clk 1:31:40]} 10. f5 {[%clk
1:29:05]} 10... e5 {[%clk 1:29:22]} 11. Nc2 {[%clk 1:28:45]} 11... Nbd7 {[%clk
1:28:09]} 12. Bg5 {[%clk 1:27:57]} 12... Be7 {[%clk 1:27:38]} 13. Ne3 {[%clk
1:27:03]} 13... h6 {[%clk 1:24:21]} 14. Bxf6 {[%clk 1:25:21]} 14... Bxf6 {[%clk
1:22:06]} 15. Ned5 {[%clk 1:24:19]} 15... Qd8 {[%clk 1:19:20]} 16. O-O {[%clk
1:23:36]} 16... O-O {[%clk 1:18:51]} 17. Bc2 {[%clk 1:19:31]} 17... Rc8 {[%clk
1:16:11]} 18. Ba4 {[%clk 1:16:04]} 18... Nc5 {[%clk 0:58:36]} 19. b4 {[%clk
1:11:09]} 19... Nxa4 {[%clk 0:53:19]} 20. Nxa4 {[%clk 1:11:11]} 20... Rxc4
{[%clk 0:50:53]} 21. Naxb6 {[%clk 1:09:55]} 21... Bxd5 {[%clk 0:45:22]} 22. Nxd5
{[%clk 1:09:48]} 22... Rxe4 {[%clk 0:44:54]} 23. Qd3 {[%clk 1:08:20]} 23... Rd4
{[%clk 0:43:56]} 24. Nxf6+ {[%clk 1:08:45]} 24... Qxf6 {[%clk 0:44:11]} 25. Qxa6
{[%clk 1:09:05]} 25... e4 {[%clk 0:43:50]} 26. b5 {[%clk 1:08:13]} 26... Rd2
{[%clk 0:43:02]} 27. Qc6 {[%clk 1:06:38]} 27... Qd4+ {[%clk 0:41:53]} 28. Kh1
{[%clk 1:07:00]} 28... e3 {[%clk 0:40:21]} 29. Qf3 {[%clk 1:06:12]} 29... Re8
{[%clk 0:36:00]} 30. Rfe1 {[%clk 1:04:32]} 30... Rf2 {[%clk 0:33:45]} 31. Qc6
{[%clk 1:04:00]} 31... Kf8 {[%clk 0:30:43]} 32. b6 {[%clk 1:03:25]} 32... d5
{[%clk 0:17:48]} 33. Qd6+ {[%clk 0:59:51]} 33... Kg8 {[%clk 0:18:11]} 34. b7
{[%clk 0:59:53]} 34... Qe4 {[%clk 0:16:27]} 35. Qg3 {[%clk 0:59:23]} 35... Rb2
{[%clk 0:16:31]} 36. f6 {[%clk 0:58:28]} 36... g6 {[%clk 0:16:53]} 37. Qh3
{[%clk 0:58:04]} 37... Kh7 {[%clk 0:16:58]} 38. a4 {[%clk 0:53:12]} 38... Rxb7
{[%clk 0:17:11]} 39. a5 {[%clk 0:53:01]} 39... d4 {[%clk 0:17:07]} 40. a6 {[%clk
0:52:26]} 40... Ra7 {[%clk 0:17:18]} 41. Ra4 {[%clk 0:52:01]} 41... Re6 {[%clk
0:17:18]} 42. Kg1 {[%clk 0:48:59]} 42... Rexa6 {[%clk 0:16:08]} 43. Qc8 {[%clk
0:47:22]} 43... Qf4 {[%clk 0:11:54]} 44. Rf1 {[%clk 0:46:05]} 44... e2 {[%clk
0:11:09]} 45. Rxf4 {[%clk 0:46:26]} 45... e1=Q+ {[%clk 0:11:29]} 46. Rf1 {[%clk
0:46:51]} 46... Qe3+ {[%clk 0:11:24]} 47. Kh1 {[%clk 0:46:47]} 47... Rxf6 {[%clk
0:09:47]} 48. Raa1 {[%clk 0:46:19]} 48... Rxa1 {[%clk 0:09:19]} 49. Rxa1 {[%clk
0:46:41]} 49... d3 {[%clk 0:09:04]} 50. Qc3 {[%clk 0:46:34]} 50... Rf2 {[%clk
0:08:42]} 51. h3 {[%clk 0:45:53]} 51... Qe4 {[%clk 0:08:43]} 52. Rg1 {[%clk
0:45:54]} 52... d2 {[%clk 0:08:41]} 53. Qa1 {[%clk 0:45:29]} 53... Re2 {[%clk
0:08:20]} 54. Qf1 {[%clk 0:45:30]} 54... Kg8 {[%clk 0:08:17]} 55. Qd1 {[%clk
0:45:39]} 55... Qe3 {[%clk 0:08:23]} 0-1

[Variant "Standard"]
[Site "Europe Echecs"]

[Event "Championnat du monde jeunes U12F"]
[Date "2024.11.18"]
[White "Baruch, Amit"]
[Black "Zavivaeva, Kristina"]
[WhiteElo "1747"]
[BlackElo "1775"]
[Round "4.7"]
[Result "0-1"]
[TimeControl "5400+30"]

1. e4 {[%clk 1:30:58]} 1... c5 {[%clk 1:30:48]} 2. Nc3 {[%clk 1:31:20]} 2... d6
{[%clk 1:31:03]} 3. f4 {[%clk 1:31:40]} 3... Nf6 {[%clk 1:30:36]} 4. Nf3 {[%clk
1:31:45]} 4... g6 {[%clk 1:30:17]} 5. Bb5+ {[%clk 1:31:02]} 5... Bd7 {[%clk
1:30:08]} 6. Bc4 {[%clk 1:31:10]} 6... Bg7 {[%clk 1:29:31]} 7. O-O {[%clk
1:30:59]} 7... O-O {[%clk 1:29:43]} 8. d3 {[%clk 1:30:54]} 8... Nc6 {[%clk
1:29:53]} 9. a3 {[%clk 1:29:14]} 9... a6 {[%clk 1:29:44]} 10. Qe1 {[%clk
1:25:24]} 10... b5 {[%clk 1:29:30]} 11. Ba2 {[%clk 1:25:34]} 11... b4 {[%clk
1:25:50]} 12. axb4 {[%clk 1:24:45]} 12... Nxb4 {[%clk 1:25:53]} 13. Bb3 {[%clk
1:23:16]} 13... Qb6 {[%clk 1:25:46]} 14. Na4 {[%clk 1:16:18]} 14... Qb7 {[%clk
1:25:08]} 15. Bd2 {[%clk 1:14:25]} 15... Nxd3 {[%clk 1:17:08]} 16. Bxf7+ {[%clk
1:12:09]} 16... Rxf7 {[%clk 1:17:25]} 17. cxd3 {[%clk 1:12:16]} 17... Bxa4
{[%clk 1:16:30]} 18. Rxa4 {[%clk 1:12:13]} 18... Qb3 {[%clk 1:10:24]} 19. Ra3
{[%clk 1:06:34]} 19... Qxb2 {[%clk 1:10:43]} 20. Bc1 {[%clk 1:06:37]} 20... Qb4
{[%clk 1:08:15]} 21. Qh4 {[%clk 1:04:26]} 21... Nd7 {[%clk 1:06:08]} 22. Qh3
{[%clk 0:54:23]} 22... Bb2 {[%clk 1:00:31]} 23. Bxb2 {[%clk 0:50:58]} 23... Qxb2
{[%clk 1:00:54]} 24. Ng5 {[%clk 0:43:47]} 24... Qxa3 {[%clk 0:45:32]} 25. Nxf7
{[%clk 0:43:28]} 25... Nf8 {[%clk 0:45:04]} 26. Nh6+ {[%clk 0:43:01]} 26... Kg7
{[%clk 0:45:09]} 27. f5 {[%clk 0:41:42]} 27... Rb8 {[%clk 0:37:32]} 28. fxg6
{[%clk 0:39:13]} 28... Nxg6 {[%clk 0:36:22]} 29. Nf5+ {[%clk 0:29:55]} 29... Kh8
{[%clk 0:35:20]} 30. Nh6 {[%clk 0:21:08]} 30... Qc3 {[%clk 0:28:45]} 31. Qf5
{[%clk 0:13:31]} 31... Rf8 {[%clk 0:21:47]} 32. Nf7+ {[%clk 0:10:48]} 32... Kg7
{[%clk 0:22:00]} 33. h3 {[%clk 0:09:56]} 33... Qb3 {[%clk 0:14:56]} 34. h4
{[%clk 0:05:22]} 34... Qxf7 {[%clk 0:13:33]} 35. h5 {[%clk 0:04:59]} 35... Qxf5
{[%clk 0:13:58]} 36. exf5 {[%clk 0:05:22]} 36... Ne5 {[%clk 0:14:25]} 37. Ra1
{[%clk 0:04:29]} 37... Rxf5 {[%clk 0:14:37]} 0-1

[Variant "Standard"]
[Site "Europe Echecs"]

[Event "Championnat du monde jeunes U12F"]
[Date "2024.11.18"]
[White "Qiu, Laurie"]
[Black "Ribreau, Anna"]
[WhiteElo "1994"]
[BlackElo "1726"]
[Round "4.8"]
[Result "1-0"]
[TimeControl "5400+30"]

1. e4 {[%clk 1:30:59]} 1... d6 {[%clk 1:26:41]} 2. d4 {[%clk 1:31:20]} 2... Nf6
{[%clk 1:26:46]} 3. Nc3 {[%clk 1:31:43]} 3... e5 {[%clk 1:26:27]} 4. Nf3 {[%clk
1:29:48]} 4... Nbd7 {[%clk 1:25:47]} 5. Bc4 {[%clk 1:25:38]} 5... Be7 {[%clk
1:24:28]} 6. O-O {[%clk 1:24:23]} 6... O-O {[%clk 1:23:56]} 7. a4 {[%clk
1:22:40]} 7... c6 {[%clk 1:22:57]} 8. a5 {[%clk 1:19:16]} 8... Rb8 {[%clk
1:18:00]} 9. Qe2 {[%clk 1:13:59]} 9... exd4 {[%clk 1:15:54]} 10. Nxd4 {[%clk
1:14:17]} 10... Ne5 {[%clk 1:15:57]} 11. Bb3 {[%clk 1:11:52]} 11... c5 {[%clk
1:14:40]} 12. Nf5 {[%clk 1:07:41]} 12... Bxf5 {[%clk 1:13:50]} 13. exf5 {[%clk
1:07:25]} 13... Qd7 {[%clk 1:12:52]} 14. f4 {[%clk 1:02:11]} 14... Nc6 {[%clk
1:10:55]} 15. Ba4 {[%clk 0:55:29]} 15... Nd4 {[%clk 1:03:10]} 16. Bxd7 {[%clk
0:43:34]} 16... Nxe2+ {[%clk 1:03:27]} 17. Nxe2 {[%clk 0:43:57]} 17... Nxd7
{[%clk 1:03:50]} 18. Nc3 {[%clk 0:39:51]} 18... Nf6 {[%clk 1:02:26]} 19. Rd1
{[%clk 0:35:55]} 19... Rbd8 {[%clk 0:57:32]} 20. Nd5 {[%clk 0:34:02]} 20... Nxd5
{[%clk 0:56:41]} 21. Rxd5 {[%clk 0:34:28]} 21... Bf6 {[%clk 0:56:31]} 22. Ra3
{[%clk 0:33:22]} 22... Rfe8 {[%clk 0:55:14]} 23. Kf1 {[%clk 0:32:22]} 23... Re4
{[%clk 0:53:53]} 24. Rb3 {[%clk 0:22:57]} 24... Rd7 {[%clk 0:48:58]} 25. Rbd3
{[%clk 0:22:30]} 25... Rd4 {[%clk 0:40:26]} 26. R3xd4 {[%clk 0:21:25]} 26...
Bxd4 {[%clk 0:40:04]} 27. g4 {[%clk 0:17:58]} 27... h6 {[%clk 0:37:23]} 28. Ke2
{[%clk 0:17:08]} 28... Bf6 {[%clk 0:35:04]} 29. Kd3 {[%clk 0:17:01]} 29... Kf8
{[%clk 0:33:43]} 30. Kc4 {[%clk 0:15:41]} 30... a6 {[%clk 0:32:15]} 31. b4
{[%clk 0:09:27]} 31... cxb4 {[%clk 0:30:09]} 32. Kxb4 {[%clk 0:09:08]} 32... Rc7
{[%clk 0:30:08]} 33. c4 {[%clk 0:09:22]} 33... Rc6 {[%clk 0:30:13]} 34. g5
{[%clk 0:08:40]} 34... hxg5 {[%clk 0:29:56]} 35. fxg5 {[%clk 0:09:05]} 35... Be5
{[%clk 0:30:01]} 36. h4 {[%clk 0:09:22]} 36... b5 {[%clk 0:28:18]} 37. cxb5
{[%clk 0:06:12]} 37... Rxc1 {[%clk 0:24:33]} 38. bxa6 {[%clk 0:06:26]} 38... Rc7
{[%clk 0:22:16]} 39. Rb5 {[%clk 0:02:33]} 39... Ra7 {[%clk 0:14:00]} 40. Rb8+
{[%clk 0:02:04]} 40... Ke7 {[%clk 0:14:17]} 41. Rb7+ {[%clk 0:02:10]} 41...
Rxb7+ {[%clk 0:14:20]} 42. axb7 {[%clk 0:02:36]} 42... d5 {[%clk 0:14:39]} 43.
a6 {[%clk 0:02:32]} 43... Bb8 {[%clk 0:14:47]} 44. Kc5 {[%clk 0:02:57]} 44...
Ba7+ {[%clk 0:13:11]} 45. Kxd5 {[%clk 0:03:15]} 45... g6 {[%clk 0:09:04]} 46.
fxg6 {[%clk 0:02:50]} 46... fxg6 {[%clk 0:09:24]} 47. Kc6 {[%clk 0:03:09]} 47...
Kd8 {[%clk 0:08:01]} 48. Kd6 {[%clk 0:03:18]} 1-0

[Variant "Standard"]
[Site "Europe Echecs"]

[Event "Championnat du monde jeunes U12F"]
[Date "2024.11.18"]
[White "Pratitee Bordoloi"]
[Black "Oksanen, Maria"]
[WhiteElo "1929"]
[BlackElo "1725"]
[Round "4.9"]
[Result "1-0"]
[TimeControl "5400+30"]

1. e4 {[%clk 1:30:56]} 1... c5 {[%clk 1:30:51]} 2. Nf3 {[%clk 1:31:18]} 2... d6
{[%clk 1:31:07]} 3. d4 {[%clk 1:31:41]} 3... cxd4 {[%clk 1:31:32]} 4. Nxd4
{[%clk 1:32:02]} 4... Nf6 {[%clk 1:31:55]} 5. Nc3 {[%clk 1:32:20]} 5... g6
{[%clk 1:32:16]} 6. Be3 {[%clk 1:32:28]} 6... Bg7 {[%clk 1:32:39]} 7. f3 {[%clk
1:32:48]} 7... Nc6 {[%clk 1:32:57]} 8. Qd2 {[%clk 1:33:08]} 8... O-O {[%clk
1:33:19]} 9. O-O-O {[%clk 1:33:31]} 9... d5 {[%clk 1:33:44]} 10. Qe1 {[%clk
1:33:47]} 10... e5 {[%clk 1:34:06]} 11. Nxc6 {[%clk 1:34:06]} 11... bxc6 {[%clk
1:34:31]} 12. exd5 {[%clk 1:34:20]} 12... Nxd5 {[%clk 1:34:45]} 13. Bc4 {[%clk
1:34:30]} 13... Be6 {[%clk 1:35:03]} 14. Kb1 {[%clk 1:34:47]} 14... Nxc3+ {[%clk
1:33:29]} 15. Qxc3 {[%clk 1:34:58]} 15... Qc8 {[%clk 1:33:20]} 16. Bc5 {[%clk
1:31:55]} 16... Re8 {[%clk 1:32:42]} 17. Bxe6 {[%clk 1:29:36]} 17... Rxe6 {[%clk
1:29:53]} 18. Qe3 {[%clk 1:28:31]} 18... Qb7 {[%clk 1:29:35]} 19. b3 {[%clk
1:25:22]} 19... h6 {[%clk 1:20:25]} 20. g4 {[%clk 1:22:32]} 20... Qc7 {[%clk
1:19:16]} 21. Rd2 {[%clk 1:18:50]} 21... e4 {[%clk 1:14:27]} 22. f4 {[%clk
1:16:05]} 22... Rf6 {[%clk 1:08:58]} 23. g5 {[%clk 1:10:54]} 23... Rf5 {[%clk
1:07:14]} 24. Bd6 {[%clk 1:07:05]} 24... Qa5 {[%clk 1:05:59]} 25. gxh6 {[%clk
1:02:25]} 25... Bc3 {[%clk 0:58:11]} 26. Rdd1 {[%clk 0:51:17]} 26... Re8 {[%clk
0:57:41]} 27. Rhg1 {[%clk 0:48:22]} 27... c5 {[%clk 0:56:24]} 28. Bc7 {[%clk
0:39:04]} 28... Bd4 {[%clk 0:55:22]} 29. Rxd4 {[%clk 0:34:56]} 29... Qxc7 {[%clk
0:55:41]} 30. Qc3 {[%clk 0:33:54]} 30... f6 {[%clk 0:46:45]} 31. Rxg6+ {[%clk
0:32:27]} 31... Kh8 {[%clk 0:46:58]} 32. Rd5 {[%clk 0:29:00]} 32... Qxf4 {[%clk
0:43:22]} 33. Rxf5 {[%clk 0:28:24]} 33... Qxf5 {[%clk 0:43:44]} 34. Rxf6 {[%clk
0:27:32]} 34... Qe5 {[%clk 0:44:10]} 35. Qxe5 {[%clk 0:26:07]} 35... Rxe5 {[%clk
0:44:35]} 36. Kc1 {[%clk 0:26:22]} 36... e3 {[%clk 0:43:39]} 37. Kd1 {[%clk
0:26:28]} 37... Rd5+ {[%clk 0:44:05]} 38. Ke2 {[%clk 0:25:39]} 38... Rd2+ {[%clk
0:44:30]} 39. Kxe3 {[%clk 0:26:04]} 39... Rxc2 {[%clk 0:44:55]} 40. Ra6 {[%clk
0:21:27]} 40... c4 {[%clk 0:42:29]} 41. b4 {[%clk 0:19:57]} 41... Rxh2 {[%clk
0:37:38]} 42. Kd4 {[%clk 0:19:48]} 42... Rc2 {[%clk 0:37:13]} 43. Rxa7 {[%clk
0:19:57]} 43... c3 {[%clk 0:37:26]} 44. Kd3 {[%clk 0:19:57]} 44... Rc1 {[%clk
0:37:33]} 45. a4 {[%clk 0:19:59]} 45... c2 {[%clk 0:37:43]} 46. b5 {[%clk
0:19:51]} 46... Kg8 {[%clk 0:37:21]} 47. Kd2 {[%clk 0:20:01]} 1-0

[Variant "Standard"]
[Site "Europe Echecs"]